[Event "*** Titled Tuesday Blitz"]
[Site "Chess.com"]
[Date "2021.02.16"]
[Round "2"]
[White "FoggyMorning"]
[Black "Taktikmonster"]
[Result "1-0"]
[WhiteElo "2610"]
[BlackElo "2338"]
[TimeControl "180+1"]
[EndTime "10:18:28 PST"]
[Termination "FoggyMorning won by resignation"]

1. e4 {[%clk 0:03:00]} 1... c5 {[%clk 0:02:59.3]} 2. Nf3 {[%clk 0:03:00.2]} 2...
d6 {[%clk 0:02:56.3]} 3. d4 {[%clk 0:03:00.1]} 3... cxd4 {[%clk 0:02:57.2]} 4.
Nxd4 {[%clk 0:03:00.3]} 4... Nf6 {[%clk 0:02:57.5]} 5. Nc3 {[%clk 0:03:00.7]}
5... Nc6 {[%clk 0:02:57.8]} 6. Bc4 {[%clk 0:02:57.8]} 6... Qb6 {[%clk
0:02:55.7]} 7. Nb3 {[%clk 0:02:57.2]} 7... e6 {[%clk 0:02:55.3]} 8. Bf4 {[%clk
0:02:56.8]} 8... Qc7 {[%clk 0:02:50]} 9. Nb5 {[%clk 0:02:53.1]} 9... Qb6 {[%clk
0:02:31.8]} 10. Bxd6 {[%clk 0:02:39.8]} 10... Nxe4 {[%clk 0:02:26.2]} 11. Nc7+
{[%clk 0:02:32.3]} 11... Kd7 {[%clk 0:01:56.8]} 12. Bc5+ {[%clk 0:02:21.4]}
12... Kxc7 {[%clk 0:01:55.9]} 13. Bxb6+ {[%clk 0:02:21.5]} 13... axb6 {[%clk
0:01:56.5]} 14. Qf3 {[%clk 0:02:08.8]} 14... Nf6 {[%clk 0:01:52.3]} 15. O-O-O
{[%clk 0:02:07.7]} 15... Bd6 {[%clk 0:01:49]} 16. Nd4 {[%clk 0:02:00.2]} 16...
Nxd4 {[%clk 0:01:43.6]} 17. Rxd4 {[%clk 0:02:01.1]} 17... Bd7 {[%clk 0:01:33.9]}
18. Rhd1 {[%clk 0:01:56.9]} 18... Bc6 {[%clk 0:01:34.1]} 19. Qe3 {[%clk
0:01:42.2]} 19... Rhd8 {[%clk 0:01:22.9]} 20. Qg5 {[%clk 0:01:30]} 20... Ne8
{[%clk 0:01:05.6]} 21. Qh5 {[%clk 0:01:27.8]} 21... Rd7 {[%clk 0:01:01.4]} 22.
Qxh7 {[%clk 0:01:09.6]} 22... Rad8 {[%clk 0:01:00.9]} 23. c3 {[%clk 0:01:09.7]}
23... e5 {[%clk 0:00:35.7]} 24. R4d2 {[%clk 0:01:00.2]} 24... e4 {[%clk
0:00:34.8]} 25. g3 {[%clk 0:00:59.4]} 25... Re7 {[%clk 0:00:30.6]} 26. Qh4
{[%clk 0:00:51.1]} 26... Nf6 {[%clk 0:00:28.3]} 27. b3 {[%clk 0:00:39.8]} 27...
e3 {[%clk 0:00:21.8]} 28. fxe3 {[%clk 0:00:38.1]} 28... Ba3+ {[%clk 0:00:19.6]}
29. Kc2 {[%clk 0:00:37.6]} 29... Be4+ {[%clk 0:00:17.9]} 30. Bd3 {[%clk
0:00:36.8]} 30... Bf3 {[%clk 0:00:12.5]} 31. Qf4+ {[%clk 0:00:36.2]} 1-0

[Event "*** Titled Tuesday Blitz"]
[Site "Chess.com"]
[Date "2021.02.16"]
[Round "2"]
[White "shaheus"]
[Black "j2806"]
[Result "1-0"]
[WhiteElo "2398"]
[BlackElo "2102"]
[TimeControl "180+1"]
[EndTime "10:18:29 PST"]
[Termination "shaheus won by resignation"]

1. e4 {[%clk 0:03:00.9]} 1... c5 {[%clk 0:03:00.3]} 2. Nf3 {[%clk 0:03:00.8]}
2... d6 {[%clk 0:03:00.9]} 3. c3 {[%clk 0:03:01.2]} 3... Nf6 {[%clk 0:02:59.8]}
4. Qb3 {[%clk 0:03:01.2]} 4... e6 {[%clk 0:02:58.4]} 5. d3 {[%clk 0:02:58.8]}
5... Nc6 {[%clk 0:02:58.4]} 6. g3 {[%clk 0:02:59.1]} 6... Be7 {[%clk 0:02:58.3]}
7. Bg2 {[%clk 0:02:59.3]} 7... O-O {[%clk 0:02:58.7]} 8. O-O {[%clk 0:02:59.4]}
8... a6 {[%clk 0:02:58.9]} 9. a4 {[%clk 0:02:58.9]} 9... Qc7 {[%clk 0:02:58.5]}
10. Bf4 {[%clk 0:02:56.7]} 10... b6 {[%clk 0:02:58.2]} 11. Na3 {[%clk
0:02:49.5]} 11... Bb7 {[%clk 0:02:57.3]} 12. Nc4 {[%clk 0:02:39.7]} 12... e5
{[%clk 0:02:45]} 13. Bd2 {[%clk 0:02:31.9]} 13... Bd8 {[%clk 0:02:44]} 14. Ne3
{[%clk 0:02:23.4]} 14... Ne7 {[%clk 0:02:38.7]} 15. Rfc1 {[%clk 0:02:11.1]}
15... d5 {[%clk 0:02:37]} 16. exd5 {[%clk 0:02:01]} 16... Nexd5 {[%clk
0:02:33.8]} 17. Nc4 {[%clk 0:01:50.1]} 17... Nd7 {[%clk 0:02:22.3]} 18. Re1
{[%clk 0:01:47.3]} 18... f6 {[%clk 0:02:17.2]} 19. d4 {[%clk 0:01:28.9]} 19...
cxd4 {[%clk 0:02:05.7]} 20. cxd4 {[%clk 0:01:28.3]} 20... exd4 {[%clk
0:02:03.3]} 21. Nxd4 {[%clk 0:01:24.6]} 21... Nc5 {[%clk 0:02:03.6]} 22. Qa2
{[%clk 0:01:10.9]} 22... Be7 {[%clk 0:01:56.5]} 23. Ne3 {[%clk 0:01:05.5]} 23...
Rad8 {[%clk 0:01:45.2]} 24. Nxd5 {[%clk 0:01:04]} 24... Bxd5 {[%clk 0:01:42.1]}
25. Bxd5+ {[%clk 0:01:03.4]} 25... Kh8 {[%clk 0:01:42.3]} 26. Bf4 {[%clk
0:01:01.7]} 26... Bd6 {[%clk 0:01:39.4]} 27. Ne6 {[%clk 0:00:50.9]} 27... Nxe6
{[%clk 0:01:34.9]} 28. Bxd6 {[%clk 0:00:48.5]} 28... Qxd6 {[%clk 0:01:30.1]} 29.
Bxe6 {[%clk 0:00:48.8]} 29... Qc5 {[%clk 0:01:27.8]} 30. Rac1 {[%clk 0:00:44.6]}
30... Qb4 {[%clk 0:01:26.7]} 31. Qb3 {[%clk 0:00:37.5]} 31... Qa5 {[%clk
0:01:24.3]} 32. Red1 {[%clk 0:00:26.3]} 32... Rde8 {[%clk 0:01:19.7]} 33. Rd7
{[%clk 0:00:20.5]} 33... Qe5 {[%clk 0:01:15.2]} 34. Bg4 {[%clk 0:00:18.7]} 34...
Re7 {[%clk 0:01:05.9]} 35. Rxe7 {[%clk 0:00:18]} 35... Qxe7 {[%clk 0:01:06.3]}
36. Bf3 {[%clk 0:00:14.9]} 36... Qe5 {[%clk 0:01:02.3]} 37. Kg2 {[%clk
0:00:14.9]} 37... h6 {[%clk 0:01:02.2]} 38. Qxb6 {[%clk 0:00:14.4]} 38... Rg8
{[%clk 0:01:00.8]} 39. Rc7 {[%clk 0:00:13.5]} 39... a5 {[%clk 0:00:58.8]} 40.
Rc5 {[%clk 0:00:12.5]} 40... Qd4 {[%clk 0:00:57.7]} 41. Qxa5 {[%clk 0:00:11.4]}
41... Qxb2 {[%clk 0:00:57.8]} 42. Qb5 {[%clk 0:00:11.3]} 1-0

[Event "*** Titled Tuesday Blitz"]
[Site "Chess.com"]
[Date "2021.02.16"]
[Round "2"]
[White "nrvisakh"]
[Black "ehrenfeld"]
[Result "1-0"]
[WhiteElo "2774"]
[BlackElo "2501"]
[TimeControl "180+1"]
[EndTime "10:18:30 PST"]
[Termination "nrvisakh won by resignation"]

1. c4 {[%clk 0:03:00.9]} 1... e5 {[%clk 0:02:59.3]} 2. Nc3 {[%clk 0:02:58.6]}
2... d6 {[%clk 0:02:58.7]} 3. g3 {[%clk 0:02:58.7]} 3... f5 {[%clk 0:02:58.7]}
4. Bg2 {[%clk 0:02:58.8]} 4... Nf6 {[%clk 0:02:59.2]} 5. Nf3 {[%clk 0:02:53.3]}
5... Be7 {[%clk 0:02:59.1]} 6. O-O {[%clk 0:01:43.1]} 6... O-O {[%clk
0:02:58.8]} 7. d4 {[%clk 0:01:41.2]} 7... e4 {[%clk 0:02:58.2]} 8. Nd2 {[%clk
0:01:40.2]} 8... c6 {[%clk 0:02:56.3]} 9. d5 {[%clk 0:01:39.8]} 9... Na6 {[%clk
0:02:54.8]} 10. f3 {[%clk 0:01:39]} 10... exf3 {[%clk 0:02:41.7]} 11. Nxf3
{[%clk 0:01:39.9]} 11... Ng4 {[%clk 0:02:23.1]} 12. h3 {[%clk 0:01:22.3]} 12...
Ne5 {[%clk 0:01:47.1]} 13. Nxe5 {[%clk 0:01:18]} 13... dxe5 {[%clk 0:01:46.8]}
14. dxc6 {[%clk 0:01:10.3]} 14... Qb6+ {[%clk 0:01:46.3]} 15. Kh2 {[%clk
0:00:56.9]} 15... bxc6 {[%clk 0:01:46.4]} 16. Qb3 {[%clk 0:00:55.7]} 16... Bd7
{[%clk 0:01:11.7]} 17. Qxb6 {[%clk 0:00:42.5]} 17... axb6 {[%clk 0:01:11.3]} 18.
Be3 {[%clk 0:00:43.3]} 18... Bc5 {[%clk 0:01:05.7]} 19. Rad1 {[%clk 0:00:41.1]}
19... Rad8 {[%clk 0:00:59.5]} 20. Bg5 {[%clk 0:00:40.4]} 20... Bd4 {[%clk
0:00:37.1]} 21. e3 {[%clk 0:00:33.3]} 21... Bxc3 {[%clk 0:00:32.5]} 22. bxc3
{[%clk 0:00:33.8]} 22... Nc5 {[%clk 0:00:26.3]} 23. Bxd8 {[%clk 0:00:30.7]}
23... Rxd8 {[%clk 0:00:26.2]} 24. Bxc6 {[%clk 0:00:31]} 1-0

[Event "*** Titled Tuesday Blitz"]
[Site "Chess.com"]
[Date "2021.02.16"]
[Round "2"]
[White "ukchessbomber"]
[Black "QuintilianoR"]
[Result "0-1"]
[WhiteElo "2481"]
[BlackElo "2717"]
[TimeControl "180+1"]
[EndTime "10:18:32 PST"]
[Termination "QuintilianoR won on time"]

1. d4 {[%clk 0:03:00.9]} 1... Nf6 {[%clk 0:02:58.8]} 2. c4 {[%clk 0:03:00.4]}
2... e6 {[%clk 0:02:58.8]} 3. Nc3 {[%clk 0:03:01]} 3... Bb4 {[%clk 0:02:58.8]}
4. a3 {[%clk 0:03:01.5]} 4... Bxc3+ {[%clk 0:02:58.7]} 5. bxc3 {[%clk
0:03:02.4]} 5... c5 {[%clk 0:02:59]} 6. f3 {[%clk 0:03:02.7]} 6... Nc6 {[%clk
0:02:54.3]} 7. e4 {[%clk 0:03:01.8]} 7... d5 {[%clk 0:02:54.4]} 8. e5 {[%clk
0:02:57.8]} 8... Nd7 {[%clk 0:02:51.4]} 9. cxd5 {[%clk 0:02:57.5]} 9... exd5
{[%clk 0:02:51.3]} 10. Bd3 {[%clk 0:02:57.9]} 10... cxd4 {[%clk 0:02:49.3]} 11.
Ne2 {[%clk 0:02:56.4]} 11... dxc3 {[%clk 0:02:44.7]} 12. f4 {[%clk 0:02:44.5]}
12... d4 {[%clk 0:02:31]} 13. O-O {[%clk 0:02:33.4]} 13... Nc5 {[%clk
0:02:24.6]} 14. a4 {[%clk 0:02:04.6]} 14... Nxd3 {[%clk 0:02:22.6]} 15. Qxd3
{[%clk 0:02:02.9]} 15... O-O {[%clk 0:02:23.2]} 16. Ba3 {[%clk 0:01:56.5]} 16...
Re8 {[%clk 0:02:23.1]} 17. Bd6 {[%clk 0:01:56.7]} 17... Bg4 {[%clk 0:01:54.8]}
18. Ng3 {[%clk 0:01:24.9]} 18... a5 {[%clk 0:01:15.7]} 19. h3 {[%clk 0:01:14.2]}
19... Bd7 {[%clk 0:01:08.5]} 20. Nh5 {[%clk 0:01:13.7]} 20... Qh4 {[%clk
0:01:00.8]} 21. g4 {[%clk 0:01:01.4]} 21... Nb4 {[%clk 0:00:47.4]} 22. Qf3
{[%clk 0:00:17.6]} 22... Bc6 {[%clk 0:00:44.8]} 23. Qe2 {[%clk 0:00:17]} 23...
Qxh3 {[%clk 0:00:41.1]} 24. Qh2 {[%clk 0:00:11.2]} 24... Qxg4+ {[%clk
0:00:35.5]} 25. Ng3 {[%clk 0:00:10.9]} 25... Re6 {[%clk 0:00:32.1]} 26. Kf2
{[%clk 0:00:04.5]} 26... Nd3+ {[%clk 0:00:29.3]} 27. Kg1 {[%clk 0:00:02.2]}
27... Rh6 {[%clk 0:00:29.4]} 0-1

[Event "*** Titled Tuesday Blitz"]
[Site "Chess.com"]
[Date "2021.02.16"]
[Round "2"]
[White "Soledadense88"]
[Black "Tpros"]
[Result "0-1"]
[WhiteElo "2295"]
[BlackElo "2477"]
[TimeControl "180+1"]
[EndTime "10:18:32 PST"]
[Termination "Tpros won on time"]

1. e4 {[%clk 0:02:59.5]} 1... c5 {[%clk 0:02:57.6]} 2. Nf3 {[%clk 0:02:59]} 2...
a6 {[%clk 0:02:56.8]} 3. d4 {[%clk 0:02:56.2]} 3... cxd4 {[%clk 0:02:56.3]} 4.
c3 {[%clk 0:02:56.7]} 4... dxc3 {[%clk 0:02:55.6]} 5. Nxc3 {[%clk 0:02:56.5]}
5... e6 {[%clk 0:02:54.9]} 6. Bc4 {[%clk 0:02:55.5]} 6... Nc6 {[%clk 0:02:50.5]}
7. O-O {[%clk 0:02:55.2]} 7... Nge7 {[%clk 0:02:48.5]} 8. Qe2 {[%clk 0:02:52.6]}
8... Ng6 {[%clk 0:02:45.7]} 9. Rd1 {[%clk 0:02:52]} 9... Bc5 {[%clk 0:02:43.7]}
10. Bg5 {[%clk 0:02:49.3]} 10... f6 {[%clk 0:02:35.4]} 11. Be3 {[%clk
0:02:46.2]} 11... Qe7 {[%clk 0:02:30]} 12. Bb3 {[%clk 0:02:34]} 12... b5 {[%clk
0:02:24.1]} 13. Rac1 {[%clk 0:02:30.6]} 13... Bxe3 {[%clk 0:02:22.3]} 14. Qxe3
{[%clk 0:02:31.5]} 14... Na5 {[%clk 0:02:16.9]} 15. h4 {[%clk 0:02:05.1]} 15...
Nxb3 {[%clk 0:02:06.8]} 16. axb3 {[%clk 0:02:06]} 16... O-O {[%clk 0:02:05.5]}
17. h5 {[%clk 0:02:06.1]} 17... Ne5 {[%clk 0:01:52.7]} 18. Nh2 {[%clk
0:01:54.8]} 18... Bb7 {[%clk 0:01:38]} 19. f4 {[%clk 0:01:54.6]} 19... Nf7
{[%clk 0:01:36.7]} 20. Ne2 {[%clk 0:01:41.5]} 20... Rfc8 {[%clk 0:01:34.9]} 21.
Ng4 {[%clk 0:01:35.9]} 21... Qb4 {[%clk 0:01:22.5]} 22. Ng3 {[%clk 0:01:29.4]}
22... Rxc1 {[%clk 0:01:18.8]} 23. Rxc1 {[%clk 0:01:30.3]} 23... h6 {[%clk
0:01:12.6]} 24. Qd3 {[%clk 0:00:53.3]} 24... Bc6 {[%clk 0:01:03.8]} 25. Nh2
{[%clk 0:00:22.4]} 25... Re8 {[%clk 0:00:41.5]} 26. Nf3 {[%clk 0:00:22.2]} 26...
f5 {[%clk 0:00:36.8]} 27. exf5 {[%clk 0:00:20.7]} 27... Qxf4 {[%clk 0:00:35.9]}
0-1

[Event "*** Titled Tuesday Blitz"]
[Site "Chess.com"]
[Date "2021.02.16"]
[Round "2"]
[White "SARGISMV"]
[Black "lelya96"]
[Result "1-0"]
[WhiteElo "2447"]
[BlackElo "2239"]
[TimeControl "180+1"]
[EndTime "10:18:35 PST"]
[Termination "SARGISMV won by resignation"]

1. c4 {[%clk 0:02:12.6]} 1... c6 {[%clk 0:02:51.4]} 2. Nc3 {[%clk 0:02:11.9]}
2... d5 {[%clk 0:02:47.1]} 3. e3 {[%clk 0:02:12.8]} 3... Nf6 {[%clk 0:02:43.6]}
4. Nf3 {[%clk 0:02:13.7]} 4... g6 {[%clk 0:02:43]} 5. b3 {[%clk 0:02:14.3]} 5...
Bg7 {[%clk 0:02:42.8]} 6. Bb2 {[%clk 0:02:15.2]} 6... O-O {[%clk 0:02:42.7]} 7.
Be2 {[%clk 0:02:15.9]} 7... Bg4 {[%clk 0:02:39.4]} 8. O-O {[%clk 0:02:15.7]}
8... Nbd7 {[%clk 0:02:37.9]} 9. h3 {[%clk 0:02:16.1]} 9... Bf5 {[%clk 0:02:36]}
10. Rc1 {[%clk 0:02:14.7]} 10... e5 {[%clk 0:02:33.8]} 11. cxd5 {[%clk
0:02:13.5]} 11... cxd5 {[%clk 0:02:33.4]} 12. Nb5 {[%clk 0:02:13]} 12... e4
{[%clk 0:02:23]} 13. Nfd4 {[%clk 0:02:08.6]} 13... Qb6 {[%clk 0:02:11.5]} 14.
Nxf5 {[%clk 0:01:54.4]} 14... gxf5 {[%clk 0:02:11.2]} 15. Nd4 {[%clk 0:01:55.3]}
15... Ne8 {[%clk 0:01:41.8]} 16. Ba3 {[%clk 0:01:42.8]} 16... Nd6 {[%clk
0:01:08.6]} 17. Bxd6 {[%clk 0:01:37.9]} 17... Qxd6 {[%clk 0:01:07.8]} 18. Nxf5
{[%clk 0:01:38.4]} 18... Qe5 {[%clk 0:01:05.4]} 19. Nxg7 {[%clk 0:01:37.7]}
19... Kxg7 {[%clk 0:01:05.9]} 20. d4 {[%clk 0:01:37]} 20... Qd6 {[%clk
0:01:04.1]} 21. f4 {[%clk 0:01:27.6]} 21... Nf6 {[%clk 0:00:59.7]} 22. Rc5
{[%clk 0:01:24.1]} 22... b6 {[%clk 0:00:57.8]} 23. Rc2 {[%clk 0:01:21.8]} 23...
Rac8 {[%clk 0:00:46]} 24. Qd2 {[%clk 0:01:16.8]} 24... Rg8 {[%clk 0:00:34.4]}
25. Rfc1 {[%clk 0:01:08.3]} 25... Rxc2 {[%clk 0:00:33.5]} 26. Rxc2 {[%clk
0:01:09.2]} 26... Qe6 {[%clk 0:00:22.2]} 27. Qe1 {[%clk 0:01:05.9]} 27... Ne8
{[%clk 0:00:20.4]} 28. Qh4 {[%clk 0:01:03.7]} 28... Nd6 {[%clk 0:00:19.4]} 29.
Bg4 {[%clk 0:01:01.6]} 29... Qg6 {[%clk 0:00:18.5]} 30. Rc6 {[%clk 0:00:57.1]}
30... Kh8 {[%clk 0:00:16]} 31. Qe7 {[%clk 0:00:46]} 31... Nf5 {[%clk 0:00:12.9]}
32. Qe5+ {[%clk 0:00:36.2]} 32... f6 {[%clk 0:00:09]} 33. Rxf6 {[%clk
0:00:34.4]} 1-0

[Event "*** Titled Tuesday Blitz"]
[Site "Chess.com"]
[Date "2021.02.16"]
[Round "2"]
[White "EnergeticHay"]
[Black "bylavochka"]
[Result "1-0"]
[WhiteElo "2388"]
[BlackElo "2076"]
[TimeControl "180+1"]
[EndTime "10:18:35 PST"]
[Termination "EnergeticHay won by resignation"]

1. e4 {[%clk 0:02:43.8]} 1... c5 {[%clk 0:03:00]} 2. b4 {[%clk 0:02:39.8]} 2...
cxb4 {[%clk 0:02:59.2]} 3. a3 {[%clk 0:02:38.7]} 3... bxa3 {[%clk 0:02:58.6]} 4.
Bxa3 {[%clk 0:02:39.6]} 4... d6 {[%clk 0:02:59.1]} 5. Nf3 {[%clk 0:02:37.8]}
5... g6 {[%clk 0:02:58.3]} 6. Bb2 {[%clk 0:02:36.5]} 6... Nf6 {[%clk 0:02:56.4]}
7. Nc3 {[%clk 0:02:34.4]} 7... Bg7 {[%clk 0:02:56.1]} 8. d4 {[%clk 0:02:29.3]}
8... O-O {[%clk 0:02:54.5]} 9. Bd3 {[%clk 0:02:21.3]} 9... Nbd7 {[%clk
0:02:44.6]} 10. O-O {[%clk 0:02:17.4]} 10... b6 {[%clk 0:02:31.8]} 11. e5 {[%clk
0:01:54.2]} 11... dxe5 {[%clk 0:02:09]} 12. dxe5 {[%clk 0:01:55.1]} 12... Ng4
{[%clk 0:02:00.6]} 13. Be4 {[%clk 0:01:52.9]} 13... Rb8 {[%clk 0:01:55]} 14. e6
{[%clk 0:01:49]} 14... fxe6 {[%clk 0:01:27.7]} 15. Rxa7 {[%clk 0:01:46.2]} 15...
Nc5 {[%clk 0:01:25.2]} 16. Qe2 {[%clk 0:01:23]} 16... Qd6 {[%clk 0:00:42.3]} 17.
g3 {[%clk 0:00:58.3]} 17... Ne5 {[%clk 0:00:07.8]} 18. Nxe5 {[%clk 0:00:54]}
18... Qxe5 {[%clk 0:00:05.2]} 19. Re1 {[%clk 0:00:38.5]} 19... Nxe4 {[%clk
0:00:03.9]} 20. Qxe4 {[%clk 0:00:38.4]} 20... Qxe4 {[%clk 0:00:04.2]} 21. Rxe4
{[%clk 0:00:38.4]} 21... Bb7 {[%clk 0:00:04.2]} 22. Rxe6 {[%clk 0:00:34.2]}
22... Bd4 {[%clk 0:00:04.3]} 23. Nd1 {[%clk 0:00:30.1]} 23... Bf3 {[%clk
0:00:02.9]} 24. Bxd4 {[%clk 0:00:27]} 24... Bxd1 {[%clk 0:00:02]} 25. Rexe7
{[%clk 0:00:24.9]} 25... Bxc2 {[%clk 0:00:01.5]} 1-0

[Event "*** Titled Tuesday Blitz"]
[Site "Chess.com"]
[Date "2021.02.16"]
[Round "2"]
[White "safikiet"]
[Black "Ajedrez_con_German"]
[Result "1-0"]
[WhiteElo "2320"]
[BlackElo "2616"]
[TimeControl "180+1"]
[EndTime "10:18:37 PST"]
[Termination "safikiet won on time"]

1. d4 {[%clk 0:03:00.9]} 1... e6 {[%clk 0:02:59.4]} 2. c4 {[%clk 0:03:00.3]}
2... Nf6 {[%clk 0:02:59.3]} 3. Nc3 {[%clk 0:03:00]} 3... Bb4 {[%clk 0:02:58.6]}
4. e3 {[%clk 0:02:57.5]} 4... c5 {[%clk 0:02:57.2]} 5. a3 {[%clk 0:02:55.1]}
5... Bxc3+ {[%clk 0:02:56.7]} 6. bxc3 {[%clk 0:02:56]} 6... Nc6 {[%clk
0:02:52.8]} 7. Bd3 {[%clk 0:02:55.2]} 7... d6 {[%clk 0:02:52.3]} 8. Nf3 {[%clk
0:02:41.1]} 8... e5 {[%clk 0:02:52.1]} 9. Nd2 {[%clk 0:02:35.5]} 9... exd4
{[%clk 0:02:42]} 10. cxd4 {[%clk 0:02:34]} 10... cxd4 {[%clk 0:02:39.8]} 11.
exd4 {[%clk 0:02:32.4]} 11... Qe7+ {[%clk 0:02:38.1]} 12. Kf1 {[%clk 0:02:28.9]}
12... Nxd4 {[%clk 0:02:38.1]} 13. Bb2 {[%clk 0:02:27.5]} 13... Nc6 {[%clk
0:02:38.2]} 14. Qc2 {[%clk 0:02:10.3]} 14... O-O {[%clk 0:02:35.4]} 15. Re1
{[%clk 0:02:06.9]} 15... Be6 {[%clk 0:02:27.4]} 16. Bxf6 {[%clk 0:02:05.3]}
16... Qxf6 {[%clk 0:02:25.7]} 17. Bxh7+ {[%clk 0:02:05.2]} 17... Kh8 {[%clk
0:02:25.9]} 18. Be4 {[%clk 0:02:03.5]} 18... Rac8 {[%clk 0:02:13.9]} 19. Qd3
{[%clk 0:01:39.5]} 19... g6 {[%clk 0:01:59.3]} 20. Bd5 {[%clk 0:01:26.8]} 20...
Ne5 {[%clk 0:01:53.2]} 21. Qd4 {[%clk 0:01:16.8]} 21... Bxd5 {[%clk 0:01:40.1]}
22. Qxd5 {[%clk 0:01:15.2]} 22... Rc5 {[%clk 0:01:10.7]} 23. Qxb7 {[%clk
0:01:13.3]} 23... Nxc4 {[%clk 0:00:55.3]} 24. Ne4 {[%clk 0:01:10.5]} 24... Qd4
{[%clk 0:00:49.7]} 25. Nxc5 {[%clk 0:01:08.5]} 25... dxc5 {[%clk 0:00:33.2]} 26.
h4 {[%clk 0:00:51.4]} 26... Nd2+ {[%clk 0:00:27.4]} 27. Kg1 {[%clk 0:00:48.7]}
27... Kg7 {[%clk 0:00:22.3]} 28. h5 {[%clk 0:00:43.9]} 28... Qc3 {[%clk
0:00:22.4]} 29. Qe7 {[%clk 0:00:32.8]} 29... Qf6 {[%clk 0:00:13.8]} 30. h6+
{[%clk 0:00:32.3]} 1-0

[Event "*** Titled Tuesday Blitz"]
[Site "Chess.com"]
[Date "2021.02.16"]
[Round "2"]
[White "EvgenyT"]
[Black "ZiggyStardust64"]
[Result "1-0"]
[WhiteElo "2939"]
[BlackElo "2582"]
[TimeControl "180+1"]
[EndTime "10:18:38 PST"]
[Termination "EvgenyT won by resignation"]

1. c4 {[%clk 0:03:00.9]} 1... e6 {[%clk 0:02:59.8]} 2. Nf3 {[%clk 0:03:00]} 2...
d5 {[%clk 0:02:58.8]} 3. g3 {[%clk 0:02:59.8]} 3... Nf6 {[%clk 0:02:57.3]} 4.
Bg2 {[%clk 0:02:59.2]} 4... dxc4 {[%clk 0:02:57.7]} 5. O-O {[%clk 0:02:56.5]}
5... a6 {[%clk 0:02:56.8]} 6. a4 {[%clk 0:02:55.2]} 6... Nc6 {[%clk 0:02:57]} 7.
Na3 {[%clk 0:02:53.3]} 7... e5 {[%clk 0:02:36.3]} 8. Nxc4 {[%clk 0:02:47.4]}
8... e4 {[%clk 0:02:35.5]} 9. Ng5 {[%clk 0:02:43.5]} 9... Bf5 {[%clk 0:02:20.5]}
10. f3 {[%clk 0:02:30.4]} 10... Bc5+ {[%clk 0:02:18.5]} 11. e3 {[%clk
0:02:27.1]} 11... exf3 {[%clk 0:02:14.7]} 12. Nxf3 {[%clk 0:01:59.9]} 12... Bd3
{[%clk 0:02:02.6]} 13. Qb3 {[%clk 0:01:55.1]} 13... Bxf1 {[%clk 0:01:57.3]} 14.
Kxf1 {[%clk 0:01:55]} 14... O-O {[%clk 0:01:53.2]} 15. d4 {[%clk 0:01:52.9]}
15... Bd6 {[%clk 0:01:43.4]} 16. a5 {[%clk 0:01:34.4]} 16... Re8 {[%clk
0:01:28.5]} 17. Bd2 {[%clk 0:01:30]} 17... Ne4 {[%clk 0:01:26]} 18. Be1 {[%clk
0:01:29]} 18... Rb8 {[%clk 0:01:10.3]} 19. Kg1 {[%clk 0:01:27.3]} 19... Qf6
{[%clk 0:01:09.8]} 20. Rc1 {[%clk 0:01:22.2]} 20... h5 {[%clk 0:01:08.2]} 21.
Qd3 {[%clk 0:01:12.5]} 21... Ng5 {[%clk 0:01:07.8]} 22. Nh4 {[%clk 0:01:00.8]}
22... g6 {[%clk 0:01:06.8]} 23. Bc3 {[%clk 0:00:59.3]} 23... Nb4 {[%clk
0:01:02.1]} 24. Qd2 {[%clk 0:00:52.1]} 24... Na2 {[%clk 0:00:56.1]} 25. Rf1
{[%clk 0:00:50.8]} 25... Qe7 {[%clk 0:00:54.5]} 26. Bd5 {[%clk 0:00:37.8]} 26...
Ne4 {[%clk 0:00:17.8]} 27. Qg2 {[%clk 0:00:37]} 27... Naxc3 {[%clk 0:00:14.8]}
28. Bxf7+ {[%clk 0:00:30.8]} 28... Qxf7 {[%clk 0:00:15.7]} 29. Rxf7 {[%clk
0:00:30.1]} 29... Kxf7 {[%clk 0:00:16.6]} 30. bxc3 {[%clk 0:00:30]} 30... Kg7
{[%clk 0:00:14.1]} 31. Ne5 {[%clk 0:00:26]} 31... Bxe5 {[%clk 0:00:13.1]} 32.
Qxe4 {[%clk 0:00:25.1]} 32... Bf6 {[%clk 0:00:13.4]} 33. Qxg6+ {[%clk
0:00:24.8]} 1-0

[Event "*** Titled Tuesday Blitz"]
[Site "Chess.com"]
[Date "2021.02.16"]
[Round "2"]
[White "Happy1712Drummer"]
[Black "BahadirOzen"]
[Result "1-0"]
[WhiteElo "2427"]
[BlackElo "2745"]
[TimeControl "180+1"]
[EndTime "10:18:38 PST"]
[Termination "Happy1712Drummer won by resignation"]

1. Nf3 {[%clk 0:02:50.8]} 1... g6 {[%clk 0:03:00.1]} 2. e4 {[%clk 0:02:48.4]}
2... Bg7 {[%clk 0:03:00.4]} 3. d4 {[%clk 0:02:48.9]} 3... d6 {[%clk 0:03:00.6]}
4. Nc3 {[%clk 0:02:47.1]} 4... Nf6 {[%clk 0:02:58.9]} 5. Be3 {[%clk 0:02:46.7]}
5... c6 {[%clk 0:02:40.5]} 6. Qd2 {[%clk 0:02:43.9]} 6... Nbd7 {[%clk
0:02:37.4]} 7. Bd3 {[%clk 0:02:43.2]} 7... Qc7 {[%clk 0:02:35.3]} 8. h3 {[%clk
0:02:38.8]} 8... O-O {[%clk 0:02:28.4]} 9. Bh6 {[%clk 0:02:36.9]} 9... e5 {[%clk
0:02:27.3]} 10. Bxg7 {[%clk 0:02:34.5]} 10... Kxg7 {[%clk 0:02:28.2]} 11. O-O
{[%clk 0:02:33.9]} 11... b5 {[%clk 0:02:20.8]} 12. dxe5 {[%clk 0:02:32.9]} 12...
dxe5 {[%clk 0:02:20.7]} 13. a4 {[%clk 0:02:31]} 13... b4 {[%clk 0:02:20.6]} 14.
Ne2 {[%clk 0:02:31.2]} 14... a5 {[%clk 0:02:19.6]} 15. Qe3 {[%clk 0:02:27.7]}
15... Re8 {[%clk 0:02:17]} 16. Ng3 {[%clk 0:02:26.8]} 16... Nf8 {[%clk
0:01:52.2]} 17. Rfc1 {[%clk 0:01:38.1]} 17... Ne6 {[%clk 0:01:46.6]} 18. c3
{[%clk 0:01:37.5]} 18... Rb8 {[%clk 0:01:47.1]} 19. cxb4 {[%clk 0:01:35.3]}
19... Rxb4 {[%clk 0:01:48]} 20. Rc2 {[%clk 0:01:26]} 20... Bd7 {[%clk
0:01:28.8]} 21. Rac1 {[%clk 0:01:13.1]} 21... Rxa4 {[%clk 0:01:04.6]} 22. Bb5
{[%clk 0:01:10.5]} 22... Rb4 {[%clk 0:01:05]} 23. Bxc6 {[%clk 0:01:09.5]} 23...
Bxc6 {[%clk 0:01:03.6]} 24. Rxc6 {[%clk 0:01:10.4]} 24... Qb8 {[%clk 0:01:03.6]}
25. Nh4 {[%clk 0:01:06.3]} 25... Ng8 {[%clk 0:00:50.7]} 26. Nhf5+ {[%clk
0:00:42]} 26... gxf5 {[%clk 0:00:49.8]} 27. Nxf5+ {[%clk 0:00:42.9]} 27... Kh8
{[%clk 0:00:49.3]} 28. Qg3 {[%clk 0:00:41.7]} 28... Rb3 {[%clk 0:00:42.8]} 29.
R1c3 {[%clk 0:00:39.3]} 29... Rxc3 {[%clk 0:00:38.4]} 30. bxc3 {[%clk
0:00:37.2]} 30... Qa7 {[%clk 0:00:19.3]} 31. Rxe6 {[%clk 0:00:21.1]} 31... fxe6
{[%clk 0:00:18.6]} 32. Qxe5+ {[%clk 0:00:21.1]} 1-0